Workbook

Sheet остатки средств в ФК_10
F1: 2
Q3: Приложение 2.
Q4: к Приказу УО ГРМО РК №_______ от 15 июля 2020г.
M6: Проект бюджета
L10: на 2026-2028 годы по МКДОУ детский сад "Колокольчик"
N11: (наименование учреждения)
B12: Бюджетная классификация | K12: ЛБО | Q12: Расчет на 2026год
B13: ППП | F13: ФКР | G13: КЦСР | H13: КВР | I13: ЭКР | J13: Суб КЭСР | K13: 2026 год | M13: 2027 год | O13: 2028 год
K14: текущие обязательства | L14: принимаемые обязательства | M14: текущие обязательства | N14: принимаемые обязательства | O14: текущие обязательства | P14: принимаемые обязательства
B15: 4 | F15: 5 | G15: 6 | H15: 7 | I15: 8 | J15: 9 | K15: 10 | L15: 11 | M15: 12 | N15: 13 | O15: 14 | P15: 15 | Q15: 16
C16: Расходы на обеспечение деятельности (оказание услуг) муниципальных дошкольных образовательных организаций
B17: 723 | C17: Заработная плата | F17: 0701 | G17: 3110102010 | H17: 111 | I17: 211 | J17: 211.00.00 | K17: 2,992,100.00 | L17: 353,900.00 | M17: 3,194,600.00 | N17: 158,000.00 | O17: 3,389,500.00 | Q17: 9,5 шт.ед.* 27093,00 * 13 мес
B18: 723 | C18: Соц.пособия и компенсац. персоналу в ден.форме | F18: 0701 | G18: 3110102010 | H18: 111 | I18: 266 | J18: 266.00.00 | K18: 10,000.00 | M18: 10,000.00 | O18: 20,000.00
B19: 723 | C19: Прочие несоциальные выплаты перс.в ден. Форме | F19: 0701 | G19: 3110102010 | H19: 112 | I19: 212 | J19: 212.00.00 | K19: 500.00 | M19: 500.00 | O19: 500.00
B20: 723 | C20: Расходы связанные со служебн. Ком.(кроме суточных) | F20: 0701 | G20: 3110102010 | H20: 112 | I20: 226 | J20: 226.04.00 | K20: 1,000.00 | M20: 1,000.00 | O20: 1,000.00
B21: 723 | C21: Прочие работы и услуги | F21: 0701 | G21: 3110102010 | H21: 112 | I21: 226 | J21: 226.07.00
B22: 723 | C22: Начисления на выплаты по оплате труда | F22: 0701 | G22: 3110102010 | H22: 119 | I22: 213 | J22: 213.00.00 | K22: 903,600.00 | L22: 106,880.00 | M22: 964,800.00 | N22: 47,800.00 | O22: 1,023,700.00
B23: 723 | C23: Услуги связи | F23: 0701 | G23: 3110102010 | H23: 242 | I23: 221 | J23: 221.00.00 | K23: 28,600.00 | L23: 1,400.00 | M23: 27,700.00 | N23: 2,300.00 | O23: 30,000.00 | Q23: связь 930,00*12 мес., интернет 1350,00 руб.*12 мес., кредит задолж 2025 г 2204,00 руб.
B24: 723 | C24: Прочие расходы по оплате договоров на выполнение работ,оказание услуг,связанных с содержанием,обслуживанием,ремонтом нефинансовых активов | F24: 0701 | G24: 3110102010 | H24: 242 | I24: 225 | J24: 225.06.00 | K24: 4,000.00 | M24: 4,000.00 | O24: 4,000.00 | Q24: ремонт и заправка картриджа
B27: 723 | C27: Оплата услуг в области информационных технологий | F27: 0701 | G27: 3110102010 | H27: 242 | I27: 226 | J27: 226.05.00 | K27: 4,700.00 | L27: 1,300.00 | M27: 4,700.00 | N27: 1,300.00 | O27: 6,000.00 | Q27: ежегодное обслуживание сайта организации
B28: 723 | C28: Увеличение стоимости основных средств | F28: 0701 | G28: 3110102010 | H28: 242 | I28: 310 | J28: 310.02.00 | K28: 30,000.00 | M28: 30,000.00 | O28: 30,000.00 | Q28: мфу, 2шт
B29: 723 | C29: Увеличение стоимости прочих оборотных запасов(материалов) | F29: 0701 | G29: 3110102010 | H29: 242 | I29: 346 | J29: 346.00.00 | K29: 0.00 | M29: 0.00 | O29: 0.00 | Q29: тонер
B30: 723 | C30: Разработка проектной и сметной документации для | F30: 0701 | G30: 3110102010 | H30: 243 | I30: 226 | J30: 226.02.00 | K30: 0.00 | M30: 0.00 | O30: 0.00 | Q30: псд ремонт отпления
B31: 723 | C31: кап ремонт системы отопления | F31: 0701 | G31: 3110102010 | H31: 243 | I31: 226 | J31: 226.07.00 | K31: 0.00 | M31: 0.00 | O31: 0.00 | Q31: ремонт отопления
B32: 723 | C32: Оплата электроэнергии | F32: 0701 | G32: 3110102010 | H32: 247 | I32: 223 | J32: 223.01.00 | K32: 184,000.00 | L32: 25,000.00 | M32: 190,400.00 | N32: 19,000.00 | O32: 209,000.00 | Q32: 18600 кВт * 11 руб. + кредит задолж дек 4400
B33: 723 | C33: Оплата потребления газа | F33: 0701 | G33: 3110102010 | H33: 247 | I33: 223 | J33: 223.03.00 | K33: 450,700.00 | L33: 89,300.00 | M33: 464,800.00 | N33: 75,200.00 | O33: 540,000.00 | Q33: 49000 куб.м.*10 р.+ кредит задолж дек 50000р.
B34: 723 | C34: Оплата водоснабжения и водоотведения | F34: 0701 | G34: 3110102010 | H34: 244 | I34: 223 | J34: 223.04.00 | K34: 29,900.00 | L34: 8,000.00 | M34: 30,700.00 | N34: 7,200.00 | O34: 38,000.00 | Q34: 480 куб.м. * 79,00 руб.
B35: 723 | C35: Оплата ассенизации | F35: 0701 | G35: 3110102010 | H35: 244 | I35: 223 | J35: 223.06.00 | K35: 6,600.00 | M35: 6,700.00 | O35: 6,700.00 | Q35: 4 рейсов (25 куб.м. *1500 руб.)
B36: 723 | C36: Вывоз мусора | F36: 0701 | G36: 3110102010 | H36: 244 | I36: 223 | J36: 223.07.00 | K36: 7,500.00 | M36: 7,500.00 | O36: 8,000.00 | Q36: 12 контейнеров * 625,00 руб.
B37: 723 | C37: Расходы по оплате договоров гражданско -правового характера | F37: 0701 | G37: 3110102010 | H37: 244 | I37: 225 | J37: 225.01.00
B38: 723 | C38: Содержание нефинансовых активов в чистоте | F38: 0701 | G38: 3110102010 | H38: 244 | I38: 225 | J38: 225.02.00 | K38: =K39+K40 -> 4,500.00 | M38: =M39+M40 -> 4,500.00 | O38: =O39+O40 -> 4,500.00
C39: дезинсекция | F39: 0701 | G39: 3110102010 | H39: 244 | I39: 225 | J39: 225.02.00 | K39: 3,000.00 | M39: 3,000.00 | O39: 3,000.00 | Q39: 1000 кв.м.*3,00 руб
C40: дератизация | F40: 0701 | G40: 3110102010 | H40: 244 | I40: 225 | J40: 225.02.00 | K40: 1,500.00 | M40: 1,500.00 | O40: 1,500.00 | Q40: 150 кв.м. * 4,00 руб. * 2 обработки
B41: 723 | C41: Устранение неисправностей(восстановление работоспособности)пожарной сигнализации | F41: 0701 | G41: 3110102010 | H41: 244 | I41: 225 | J41: 225.05.00 | K41: =K42+K43 -> 78,000.00 | L41: =L42+L43 -> 9,000.00 | M41: =M42+M43 -> 78,000.00 | N41: =N42+N43 -> 9,000.00 | O41: =O42+O43 -> 87,000.00
C42: в т.ч. Тех.обсл. АПС | F42: 0701 | G42: 3110102010 | H42: 244 | I42: 225 | J42: 225.05.00 | K42: 15,000.00 | L42: 9,000.00 | M42: 15,000.00 | N42: 9,000.00 | O42: 24,000.00 | Q42: 2000,00 руб * 12 мес
C43: Тех.обсл.ПАК Стрелец Мониторинг | F43: 0701 | G43: 3110102010 | H43: 244 | I43: 225 | J43: 225.05.00 | K43: 63,000.00 | M43: 63,000.00 | O43: 63,000.00 | Q43: 5250,00 руб. * 12 мес.
B44: 723 | C44: Прочие расходы по оплате договоров на выполнение работ,оказание услуг,связанных с содержанием,обслуживанием,ремонтом нефинансовых активов | F44: 0701 | G44: 3110102010 | H44: 244 | I44: 225 | J44: 225.06.00 | K44: =SUM(K45:K49) -> 20,000.00 | L44: =SUM(L45:L50) -> 20,000.00 | M44: =SUM(M45:M49) -> 20,000.00 | N44: =SUM(N45:N49) -> 0.00 | O44: =SUM(O45:O49) -> 20,000.00
C45: в т.ч.тех. обсл. газового оборудов. | F45: 0701 | G45: 3110102010 | H45: 244 | I45: 225 | J45: 225.06.00 | K45: 4,500.00 | M45: 4,500.00 | O45: 4,500.00
C46: форма 20 | F46: 0701 | G46: 3110102010 | H46: 244 | I46: 225 | J46: 225.06.00 | K46: 2,500.00 | M46: 2,500.00 | O46: 2,500.00
C47: замер сопротивления | F47: 0701 | G47: 3110102010 | H47: 244 | I47: 225 | J47: 225.06.00 | K47: 0.00 | L47: 0.00 | M47: 0.00 | O47: 0.00
C48: поверка монометров | F48: 0701 | G48: 3110102010 | H48: 244 | I48: 225 | J48: 225.06.00 | K48: 6,000.00 | M48: 6,000.00 | O48: 6,000.00 | Q48: 4шт.*1500,00 руб. Подготовка к отопительному сезону
C49: тех.освидетельствование медтехники | F49: 0701 | G49: 3110102010 | H49: 244 | I49: 225 | J49: 225.06.00 | K49: 7,000.00 | M49: 7,000.00 | O49: 7,000.00
C50: аттестация газового узла | F50: 0701 | G50: 3110102010 | H50: 244 | I50: 225 | J50: 225.06.00 | L50: 20,000.00
B51: 723 | C51: Прочие работы,услуги | F51: 0701 | G51: 3110102010 | H51: 244 | I51: 226 | J51: 226.07.00 | K51: =SUM(K52:K63) -> 261,300.00 | L51: =SUM(L52:L63) -> 37,400.00 | M51: =SUM(M52:M63) -> 261,300.00 | N51: =SUM(N52:N63) -> 0.00 | O51: =SUM(O52:O63) -> 261,300.00 | P51: =SUM(P52:P62) -> 0.00
C52: Медицинский осмотр | F52: 0701 | G52: 3110102010 | H52: 244 | I52: 226 | J52: 226.07.00 | K52: 80,000.00 | M52: 70,000.00 | O52: 70,000.00 | Q52: ООО Человек-35000,00 руб; СЭС-33000,00 руб;
C53: обучение пожарной безопасности | F53: 0701 | G53: 3110102010 | H53: 244 | I53: 226 | J53: 226.07.00 | K53: 1,800.00 | M53: 1,800.00 | O53: 1,800.00 | Q53: 1800,00 руб. * 1 чел Закон РФ от 05.03.1992 №2446-I «О безопасности»
C54: обучение охрана труда | F54: 0701 | G54: 3110102010 | H54: 244 | I54: 226 | J54: 226.07.00 | K54: 6,500.00 | M54: 6,500.00 | O54: 6,500.00 | Q54: 6500,00 руб.*1 чел. Закон РФ от 05.03.1992 №2446-I «О безопасности»
C55: обучение по антитеррористической защищенности | F55: 0701 | G55: 3110102010 | H55: 244 | I55: 226 | J55: 226.07.00 | K55: 6,000.00 | M55: 4,000.00 | O55: 4,000.00 | Q55: 2000,00 руб*3 чел. Закон РФ от 05.03.1992 №2446-I «О безопасности»
C56: ХАССП | F56: 0701 | G56: 3110102010 | H56: 244 | I56: 226 | J56: 226.07.00 | K56: 41,000.00 | M56: 50,000.00 | O56: 50,000.00 | Q56: положение Технического регламента Таможенного союза ТР ТС 021/2011 «О безопасности пищевой продукции» с 15 февраля 2015г с обязательным внедрение системы - ХАССП
C57: оценка проф. рисков | F57: 0701 | G57: 3110102010 | H57: 244 | I57: 226 | J57: 226.07.00 | K57: 9,000.00 | M57: 9,000.00 | O57: 9,000.00 | Q57: ТК РФ (ч. 6, 13 ст. 209, ч. 3 ст. 214, ст. 217 ).
C58: Периодическая подписка на газеты, журналы | F58: 0701 | G58: 3110102010 | H58: 244 | I58: 226 | J58: 226.07.00 | K58: 12,000.00 | M58: 12,000.00 | O58: 12,000.00
C59: курсовя подготовка педагагов | F59: 0701 | G59: 3110102010 | H59: 244 | I59: 226 | J59: 226.07.00 | K59: 12,600.00 | L59: 37,400.00 | M59: 30,000.00 | O59: 30,000.00 | Q59: 6 чел.*5000,00руб. ФГОС ДО
C60: СОУТ | F60: 0701 | G60: 3110102010 | H60: 244 | I60: 226 | J60: 226.07.00 | K60: 14,400.00 | M60: 0.00 | O60: 0.00 | Q60: 800,00 руб* 18 чел ФЗ «О специальной оценке условий труда» от 24.07.2023 N 381-ФЗ
C61: производственный контроль пищеблока (пробы,смывы) | F61: 0701 | G61: 3110102010 | H61: 244 | I61: 226 | J61: 226.07.00 | K61: 55,000.00 | M61: 55,000.00 | O61: 55,000.00 | Q61: ФЗ №52-ФЗ от 30 марта 1999 года "О санитарно-эпидемиологическом благополучии населения", СП 1.1.1058-01 «Организация и проведение произв. контроля за соблюдением сан. правил и вып. сан.-противоэпид. (профилактических) мероприятий».
C62: анализ песка | F62: 0701 | G62: 3110102010 | H62: 244 | I62: 226 | J62: 226.07.00 | K62: 18,000.00 | M62: 18,000.00 | O62: 18,000.00 | Q62: 24 пробы *750,00 руб. Санитарно-эпидемиологические требования к организациям воспитания и обучения, отдыха и оздоровления детей и молодежи» с 01.01.2021.
C63: Нотариальные услуги | F63: 0701 | G63: 3110102010 | H63: 244 | I63: 226 | J63: 226.07.00 | K63: 5,000.00 | M63: 5,000.00 | O63: 5,000.00
B64: 723 | C64: Увеличение стоимости основных средств, в т.ч.: | F64: 0701 | G64: 3110102010 | H64: 244 | I64: 310 | J64: 310.02.00 | K64: =SUM(K65:K96) -> 561,100.00 | L64: =SUM(L65:L96) -> 0.00 | M64: =SUM(M65:M96) -> 600,000.00 | N64: =SUM(N65:N96) -> 117,000.00 | O64: =SUM(O65:O96) -> 744,000.00
C65: шкаф хозяйственный | F65: 0701 | G65: 3110102010 | H65: 244 | I65: 310 | J65: 310.02.00 | K65: 25,000.00 | Q65: 1шт (пищеблок)
C66: водонагреватель накопительный | F66: 0701 | G66: 3110102010 | H66: 244 | I66: 310 | J66: 310.02.00 | K66: 21,000.00 | Q66: 1шт (пищеблок)
C67: шкаф детский для одежды | F67: 0701 | G67: 3110102010 | H67: 244 | I67: 310 | J67: 310.02.00 | K67: 225,000.00 | Q67: 15 шт*14780,00 ()
C68: банкетка детская | F68: 0701 | G68: 3110102010 | H68: 244 | I68: 310 | J68: 310.02.00 | K68: 22,000.00 | Q68: 8 шт (групповые комнаты)
C69: стеллаж под доску | F69: 0701 | G69: 3110102010 | H69: 244 | I69: 310 | J69: 310.02.00 | K69: 47,600.00 | Q69: 4 шт (групповые комнаты) ФГОС ФОП требования по оснащению РППС
C70: пылесос | F70: 0701 | G70: 3110102010 | H70: 244 | I70: 310 | J70: 310.02.00 | K70: 10,000.00 | Q70: 2 шт (групповые комнаты)
C71: стол логопедический для ребенка | F71: 0701 | G71: 3110102010 | H71: 244 | I71: 310 | J71: 310.02.00 | K71: 11,000.00 | Q71: 1 шт ФГОС ФОП требования по оснащению РППС
C72: стол логопедический для педагога | F72: 0701 | G72: 3110102010 | H72: 244 | I72: 310 | J72: 310.02.00 | K72: 13,100.00 | Q72: 1 шт ФГОС ФОП требования по оснащению РППС
C73: интерактивная доска | F73: 0701 | G73: 3110102010 | H73: 244 | I73: 310 | J73: 310.02.00 | K73: 85,000.00 | Q73: 1 шт. ФГОС ФОП. Требования к оснащению РППС
C74: утюг | F74: 0701 | G74: 3110102010 | H74: 244 | I74: 310 | J74: 310.02.00 | K74: 5,000.00 | Q74: 1шт (прачечная)
C75: телевизор | F75: 0701 | G75: 3110102010 | H75: 244 | I75: 310 | J75: 310.02.00 | K75: 60,000.00 | O75: 60,000.00 | Q75: 3 шт.*20000,00 (групповые комнаты)
C76: карусели | F76: 0701 | G76: 3110102010 | H76: 244 | I76: 310 | J76: 310.02.00 | O76: 288,000.00 | Q76: 4 комплекта (игровые участки)Санитарно-эпидемиологические требования к организациям воспитания и обучения, отдыха и оздоровления детей и молодежи» с 01.01.2021. III. Требования к оборудованию и содержанию территорий дошкольных образовательных организаций
C77: конструкторы напольные крупномерные | F77: 0701 | G77: 3110102010 | H77: 244 | I77: 310 | J77: 310.02.00 | O77: 144,000.00 | Q77: 4 шт.*36000,00 (групповые комнаты)
C78: стеллаж для стаканов | F78: 0701 | G78: 3110102010 | H78: 244 | I78: 310 | J78: 310.02.00 | M78: 9,000.00 | Q78: 1 шт (столовая)
C79: стеллаж для тарелок | F79: 0701 | G79: 3110102010 | H79: 244 | I79: 310 | J79: 310.02.00 | O79: 11,000.00 | Q79: 1 шт (столовая)
C80: шкаф для медикаментов | F80: 0701 | G80: 3110102010 | H80: 244 | I80: 310 | J80: 310.02.00 | M80: 12,000.00 | Q80: 1 шт (медицинский кабинет)
C81: секундомер электронный | F81: 0701 | G81: 3110102010 | H81: 244 | I81: 310 | J81: 310.02.00 | M81: 4,000.00 | Q81: 1 шт (медицинский кабинет)
C82: весы медицинские | F82: 0701 | G82: 3110102010 | H82: 244 | I82: 310 | J82: 310.02.00 | M82: 8,000.00 | Q82: 1 шт (медицинский кабинет)
C83: холодильник медицинский | F83: 0701 | G83: 3110102010 | H83: 244 | I83: 310 | J83: 310.02.00 | M83: 21,000.00 | Q83: 1 шт (медицинский кабинет)
C84: травматологическая укладка | F84: 0701 | G84: 3110102010 | H84: 244 | I84: 310 | J84: 310.02.00 | M84: 6,400.00 | Q84: 1 шт (медицинский кабинет)
C85: укладка посиндромная на 12 синдромов | F85: 0701 | G85: 3110102010 | H85: 244 | I85: 310 | J85: 310.02.00 | N85: 7,000.00 | Q85: 1 шт (медицинский кабинет)
C86: цифровая лаборатория Наураша 7 модулей | F86: 0701 | G86: 3110102010 | H86: 244 | I86: 310 | J86: 310.02.00 | M86: 135,000.00 | Q86: ФГОС 17.10.2013 № 1155, ФОП ,Оснащение образовательного процесса
C87: полифункциональный конструктор Бабашки | F87: 0701 | G87: 3110102010 | H87: 244 | I87: 310 | J87: 310.02.00 | N87: 110,000.00
C88: игровой набор «Мир головоломок» (Пуговицы) | F88: 0701 | G88: 3110102010 | H88: 244 | I88: 310 | J88: 310.02.00 | M88: 65,000.00
C89: дидактические пособия | F89: 0701 | G89: 3110102010 | H89: 244 | I89: 310 | J89: 310.02.00 | K89: 36,400.00 | M89: 13,600.00
C90: аккустическая система | F90: 0701 | G90: 3110102010 | H90: 244 | I90: 310 | J90: 310.02.00 | M90: 26,000.00 | Q90: 1 шт (музыкальный зал)ФГОС 17.10.2013 № 1155, ФОП ,Оснащение образовательного процесса
C91: Шумовые инструменты (ксилофон, моракасы, трещетки, тамбурин, барабан | F91: 0701 | G91: 3110102010 | H91: 244 | I91: 310 | J91: 310.02.00 | M91: 15,000.00
C92: огнетушители | F92: 0701 | G92: 3110102010 | H92: 244 | I92: 310 | J92: 310.02.00 | M92: 5,000.00 | Q92: 5 шт.*1000,00(пожарная безопасность)
C93: кресла секционные в музыкальный зал | F93: 0701 | G93: 3110102010 | H93: 244 | I93: 310 | J93: 310.02.00 | M93: 280,000.00 | Q93: 40 шт*7000,00
C94: шкаф для документов | O94: 25,000.00 | Q94: 1 шт.*25000,00 (административные кабинеты)
C95: стол письменный 2-х тумбовый | O95: 16,000.00 | Q95: 1 шт.*25000,00 (административные кабинеты)
C96: оборудование учебно-игровое, мебель детская | F96: 0701 | G96: 3110102010 | H96: 244 | I96: 310 | J96: 310.02.00 | O96: 200,000.00
B97: 723 | C97: Увеличение стоимости лекарственных препаратов и материалов | F97: 0701 | G97: 3110102010 | H97: 244 | I97: 341 | J97: 341.00.00 | K97: 9,000.00 | M97: 9,000.00 | O97: 9,000.00
B98: 723 | C98: Увеличение стоимости продуктов питания | F98: 0701 | G98: 3110102010 | H98: 244 | I98: 342 | J98: 342.00.00 | K98: 0.00 | M98: 0.00 | Q98: дети-инвалиды 1 чел. * 1300,00 руб. * 4 мес.
C99: Увеличение стоимости продуктов питания | F99: 0701 | G99: 3110102010 | H99: 244 | I99: 342 | J99: 342.00.00 | K99: 10,000.00 | M99: 10,000.00 | O99: 10,000.00 | Q99: вода питьевая 72 бут.*19л.*8,00 руб.
C100: Увеличение стоимости горюче-смазочных материалов | F100: 0701 | G100: 3110102010 | H100: 244 | I100: 343 | J100: 343.00.00 | K100: 10,000.00 | L100: 10,000.00 | M100: 10,000.00 | N100: 10,000.00 | O100: 10,000.00 | Q100: покос травы(бензин АИ-92 200л*50,00 руб.)
B101: 723 | C101: Увеличение стоимости мягкого инвентаря, в т.ч.: | F101: 0701 | G101: 3110102010 | H101: 244 | I101: 345 | J101: 345.00.00 | K101: =SUM(K102:K108) -> 30,000.00 | L101: =SUM(L102:L108) -> 90,000.00 | M101: =SUM(M102:M108) -> 70,000.00 | N101: =SUM(N102:N108) -> 0.00 | O101: =SUM(O102:O108) -> 165,000.00
C102: полотенца | F102: 0701 | G102: 3110102010 | H102: 244 | I102: 345 | J102: 345.00.00 | K102: 12,600.00 | Q102: 70 шт. * 180,00 руб. СанПиН 2.4.1.3049-13
C103: матрацы | F103: 0701 | G103: 3110102010 | H103: 244 | I103: 345 | J103: 345.00.00 | K103: 10,500.00 | Q103: 15 шт.*700,00 руб. СанПиН 2.4.1.3049-13
C104: КПБ детский | F104: 0701 | G104: 3110102010 | H104: 244 | I104: 345 | J104: 345.00.00 | K104: 6,900.00 | L104: 90000.00 | Q104: 65 шт.*1550,00 руб. СанПиН 2.4.1.3049-13
C105: спецодежда | F105: 0701 | G105: 3110102010 | H105: 244 | I105: 345 | J105: 345.00.00 | O105: 20,000.00 | Q105: 15 шт.*1300,00 руб. СанПиН 2.4.1.3049-13
C106: ковровое покрытие | F106: 0701 | G106: 3110102010 | H106: 244 | I106: 345 | J106: 345.00.00 | M106: 25,000.00 | O106: 100,000.00 | Q106: музыкальный зал ФГОС 17.10.2013 № 1155, ФОП (оснащение педагогического процесса)
C107: костюмы сценические | F107: 0701 | G107: 3110102010 | H107: 244 | I107: 345 | J107: 345.00.00 | M107: 20,000.00 | O107: 20,000.00
C108: занавес для центральной сцены | F108: 0701 | G108: 3110102010 | H108: 244 | I108: 345 | J108: 345.00.00 | M108: 25,000.00 | O108: 25,000.00
B109: 723 | C109: Увеличение стоимости прочих оборотных запасов(материалов) в т.ч.: | F109: 0701 | G109: 3110102010 | H109: 244 | I109: 346 | J109: 346.00.00 | K109: =SUM(K110:K133) -> 106,000.00 | L109: =SUM(L110:L133) -> 243,900.00 | M109: =SUM(M110:M133) -> 106,600.00 | N109: =SUM(N110:N133) -> 50,000.00 | O109: =SUM(O110:O133) -> 85,600.00
C110: кацелярские товары (бумага ксерокс ) | F110: 0701 | G110: 3110102010 | H110: 244 | I110: 346 | J110: 346.00.00 | K110: 20,000.00 | M110: 30000.00 | O110: 20,000.00 | Q110: 40 шт* 500руб
C111: Печатно-информационная продукция: стенды, баннер | F111: 0701 | G111: 3110102010 | H111: 244 | I111: 346 | J111: 346.00.00 | K111: 10,000.00 | Q111: Программа развития, годовой план работы 24-25 уч.г. (Наглядная информация)
C112: игрушки, дидактические пособия | F112: 0701 | G112: 3110102010 | H112: 244 | I112: 346 | J112: 346.00.00 | K112: 50,000.00 | M112: 11600.00 | Q112: 4 набора (групповые комнаты)
C113: комплект раздаточной посуды | F113: 0701 | G113: 3110102010 | H113: 244 | I113: 346 | J113: 346.00.00 | K113: 13,200.00 | Q113: 60шт*220,00
C114: моющие, чистящие средства | F114: 0701 | G114: 3110102010 | H114: 244 | I114: 346 | J114: 346.00.00 | K114: 12,800.00 | L114: 50,000.00 | M114: 50000.00 | N114: 50,000.00 | O114: 50,000.00
C115: дезинфицирующие средства для обработки помещения, посуды, игрушек | F115: 0701 | G115: 3110102010 | H115: 244 | I115: 346 | J115: 346.00.00 | L115: 15,600.00 | M115: 15,000.00 | O115: 15,600.00 | Q115: 24 б.*650,00 руб. согл.требований СанПиН
C116: набор разделочных досок | F116: 0701 | G116: 3110102010 | H116: 244 | I116: 346 | J116: 346.00.00 | L116: 10,000.00 | Q116: 1шт. (пищеблок)
C117: ведро | F117: 0701 | G117: 3110102010 | H117: 244 | I117: 346 | J117: 346.00.00 | L117: 4,500.00 | Q117: 15 шт *300,00 (групповые комнаты)
C118: таз | F118: 0701 | G118: 3110102010 | H118: 244 | I118: 346 | J118: 346.00.00 | L118: 2,000.00 | Q118: 10шт*200,00 (групповые комнаты)
C119: ковш | F119: 0701 | G119: 3110102010 | H119: 244 | I119: 346 | J119: 346.00.00 | L119: 800.00 | Q119: 2шт*400,00 (пищеблок)
C120: сковорода | F120: 0701 | G120: 3110102010 | H120: 244 | I120: 346 | J120: 346.00.00 | L120: 3,600.00 | Q120: 2шт*1800,00(пищеблок)
C121: бак для воды | F121: 0701 | G121: 3110102010 | H121: 244 | I121: 346 | J121: 346.00.00 | L121: 2,400.00 | Q121: 2шт*1200,00(пищеблок)
C122: набор ножей с подставкой | F122: 0701 | G122: 3110102010 | H122: 244 | I122: 346 | J122: 346.00.00 | L122: 6,000.00 | Q122: 1шт. (пищеблок)
C123: гигрометр и термометр складской | F123: 0701 | G123: 3110102010 | H123: 244 | I123: 346 | J123: 346.00.00 | L123: 4,200.00 | Q123: 2шт*2100,00 (пищеблок)
C124: кварцевая лампа | F124: 0701 | G124: 3110102010 | H124: 244 | I124: 346 | J124: 346.00.00 | L124: 3,600.00 | Q124: 1 шт*3600,00 (медицинский кабинет)
C125: дозатор локтевой | F125: 0701 | G125: 3110102010 | H125: 244 | I125: 346 | J125: 346.00.00 | L125: 10,000.00 | Q125: 5шт*2000,00 (пищеблок, медицинский кабинет)
C126: сушилка для рук | F126: 0701 | G126: 3110102010 | H126: 244 | I126: 346 | J126: 346.00.00 | L126: 9,000.00 | Q126: 2шт *4500,00 (пищеблок, медицинский кабинет)
C127: набор желудочных зондов | F127: 0701 | G127: 3110102010 | H127: 244 | I127: 346 | J127: 346.00.00 | L127: 600.00 | Q127: 1 шт.*600,00 (медицинский кабинет)
C128: спортивный инвентарь | F128: 0701 | G128: 3110102010 | H128: 244 | I128: 346 | J128: 346.00.00 | L128: 55,000.00 | Q128: 1 набор (мячи, обручи, ребристые доски, балансир, гимнастическая скамья)
C129: сушилка переносная | F129: 0701 | G129: 3110102010 | H129: 244 | I129: 346 | J129: 346.00.00 | L129: 2,600.00 | Q129: 2шт*1300,00 (прачечная)
C130: бельевая корзина | F130: 0701 | G130: 3110102010 | H130: 244 | I130: 346 | J130: 346.00.00 | L130: 2,000.00 | Q130: 1шт (прачечная)
C131: бак для обеззараживания белья | F131: 0701 | G131: 3110102010 | H131: 244 | I131: 346 | J131: 346.00.00 | L131: 2,000.00 | Q131: 1шт (прачечная)
C132: флагшток | F132: 0701 | G132: 3110102010 | H132: 244 | I132: 346 | J132: 346.00.00 | L132: 30,000.00
C133: национально-региональный компонент | F133: 0701 | G133: 3110102010 | H133: 244 | I133: 346 | J133: 346.00.00 | L133: 30,000.00 | Q133: Программа развития ДОУ
B134: 723 | C134: Увеличение стоимости прочих материальных запасов однократного применения | F134: 0701 | G134: 3110102010 | H134: 244 | I134: 349 | J134: 349.01.00 | K134: 4,000.00 | M134: 4,000.00 | O134: 4,000.00
B135: 723 | C135: Приобретение подарочной и сувенирной продукции, не предназначенной для дальнейшего применения | F135: 0701 | G135: 3110102010 | H135: 244 | I135: 349 | J135: 349.02.00 | K135: 2,000.00 | M135: 2,000.00 | O135: 2,000.00
B136: 723 | C136: Выплаты государственных премий,грантов и других поощрений | F136: 0701 | G136: 3110102010 | H136: 350 | I136: 296 | J136: 296.02.00 | K136: 19,000.00 | M136: 19,000.00 | O136: 19,000.00
B137: 723 | C137: Налог на имущество | F137: 0701 | G137: 3110102010 | H137: 851 | I137: 291 | J137: 291.01.00 | K137: 18,000.00 | M137: 18,000.00 | O137: 0.00
C138: Земельный налог | F138: 0701 | G138: 3110102010 | H138: 851 | I138: 291 | J138: 291.02.00 | K138: 5,300.00 | M138: 5,300.00 | O138: 5,300.00
B139: 723 | C139: Государственные пошлины и сборы в установленных законодательством РФ случаях | F139: 0701 | G139: 3110102010 | H139: 852 | I139: 291 | J139: 291.04.00 | K139: 5,000.00 | M139: 5,000.00 | O139: 5,000.00
B140: 723 | C140: Штрафы за нарушение законодательства о налогах и сборах,законодательства о страховых взносах | F140: 0701 | G140: 3110102010 | H140: 853 | I140: 292 | J140: 292.00.00 | K140: 5,000.00 | M140: 5,000.00 | O140: 5,000.00
C141: Расходы на обеспечение деятельности (оказание услуг) муниципальных дошкольных образовательных организаций за счет платных услуг | G141: 3110102090 | K141: =K142+K143+K144 -> 765,000.00 | L141: =L142+L143+L144 -> 0.00 | M141: =M142+M143+M144 -> 765,000.00 | N141: =N142+N143+N144 -> 0.00 | O141: =O142+O143+O144 -> 765,000.00
B142: 723 | C142: Увеличение стоимости продуктов питания | F142: 0701 | G142: 3110102090 | H142: 244 | I142: 342 | J142: 342.00.00 | K142: 765,000.00 | M142: 765,000.00 | O142: 765,000.00
B143: 723 | C143: Увеличение стоимости мягкого инвентаря | F143: 0701 | G143: 3110102090 | H143: 244 | I143: 345 | J143: 345.00.00 | K143: 0.00 | M143: 0.00 | O143: 0.00
B144: 723 | C144: Увеличение стоимости прочих оборотных запасов(материалов) | F144: 0701 | G144: 3110102090 | H144: 244 | I144: 346 | J144: 346.00.00 | K144: 0.00 | M144: 0.00 | O144: 0.00
C145: Реализация мероприятий, направленных на текущий ремонт зданий и сооружений учреждений образования | G145: 3110113520 | K145: =K146+K147+K148 -> 385,000.00 | L145: =L146+L147+L148 -> 307,000.00 | M145: =M146+M147+M148 -> 315,000.00 | O145: =O146+O147+O148 -> 175,000.00
B146: 723 | C146: Расходы по оплате договоров гражданско -правового характера | F146: 0701 | G146: 3110113520 | H146: 244 | I146: 225 | J146: 225.01.00 | L146: 115,000.00 | M146: 0.00 | Q146: укладка тротуарной плитки, установка теневого навеса входной зоны
B147: 723 | C147: Текущий ремонт нефинансовых аактивов | F147: 0701 | G147: 3110113520 | H147: 244 | I147: 225 | J147: 225.03.00
B148: 723 | C148: Увеличение стоимости строительных материалов, в т.ч. | F148: 0701 | G148: 3110113520 | H148: 244 | I148: 344 | J148: 344.00.00 | K148: =SUM(K149:K159) -> 385,000.00 | L148: =SUM(L149:L159) -> 192,000.00 | M148: =SUM(M149:M159) -> 315,000.00 | O148: =SUM(O149:O159) -> 175,000.00
C149: плитка кафельная стены | F149: 0701 | G149: 3110113520 | H149: 244 | I149: 344 | J149: 344.00.00 | K149: 140,000.00 | Q149: 80 кв.м*1750,00 р.пищеблок
C150: плитка тротуарная | F150: 0701 | G150: 3110113520 | H150: 244 | I150: 344 | J150: 344.00.00 | K150: 25,000.00 | Q150: 9 кв.м. входная зона «Санитарно-эпидемиологические требования к организациям воспитания и обучения, отдыха и оздоровления детей и молодежи» с 01.01.2021.
C151: Покраска стен ВД красками во всех помещениях | F151: 0701 | G151: 3110113520 | H151: 244 | I151: 344 | J151: 344.00.00 | K151: 100,000.00 | M151: 100,000.00 | O151: 100,000.00 | Q151: «Санитарно-эпидемиологические требования к организациям воспитания и обучения, отдыха и оздоровления детей и молодежи» с 01.01.2021. Предписание Роспоребнадзора от 11.03.2024№12
C152: Покраска уличного оборудования | F152: 0701 | G152: 3110113520 | H152: 244 | I152: 344 | J152: 344.00.00 | K152: 15,000.00 | M152: 15,000.00 | O152: 20,000.00 | Q152: СанПиН 2.1.3684-21 "Санитарно-эпидемиологические требования к содержанию территорий ДОУ
C153: грунтовка и оштукатуривание стен в коридорах и группах, покраска, побелка помещения и территории | F153: 0701 | G153: 3110113520 | H153: 244 | I153: 344 | J153: 344.00.00 | K153: 30,000.00 | M153: 30,000.00 | O153: 50,000.00 | Q153: «Санитарно-эпидемиологические требования к организациям воспитания и обучения, отдыха и оздоровления детей и молодежи» с 01.01.2021.
C154: линолеум | F154: 0701 | G154: 3110113520 | H154: 244 | I154: 344 | J154: 344.00.00 | K154: 45,000.00 | Q154: 2 групповые комнаты, раздевалки Предписание Роспоребнадзора от 11.03.2024№12
C155: песок в песочницы, 2тонны | F155: 0701 | G155: 3110113520 | H155: 244 | I155: 344 | J155: 344.00.00 | K155: 2,000.00 | M155: 2,000.00 | O155: 5,000.00 | Q155: ежегодная замена песка Сан.-эпидем. Треб. к организациям воспитания и обучения, отдыха и оздоровл. детей и молодежи» с 01.01.2021.
C156: навес теневой | F156: 0701 | G156: 3110113520 | H156: 244 | I156: 344 | J156: 344.00.00 | K156: 28,000.00 | L156: 122,000.00 | Q156: «Санитарно-эпидемиологические требования к организациям воспитания и обучения, отдыха и оздоровления детей и молодежи» с 01.01.2021. Предписание Роспоребнадзора от 11.03.2024№12
C157: покрытие к каруселям и малым архитектурным формам | F157: 0701 | G157: 3110113520 | H157: 244 | I157: 344 | J157: 344.00.00 | L157: 70,000.00 | Q157: Предписание прокуратуры
C158: замена труб водопровод | F158: 0701 | G158: 3110113520 | H158: 244 | I158: 344 | J158: 344.00.00
C159: замена электрической проводки | F159: 0701 | G159: 3110113520 | H159: 244 | I159: 344 | J159: 344.00.00 | M159: 168,000.00
C160: Осуществление переданных государственных полномочий в сфере дошкольного образования | G160: 3110271060 | K160: =SUM(K161:K165) -> 7,543,200.00 | L160: =SUM(L161:L165) -> 1,780,400.00 | M160: =SUM(M161:M165) -> 7,543,200.00 | N160: =SUM(N161:N165) -> 2,028,900.00 | O160: =SUM(O161:O165) -> 9,577,500.00
B161: 723 | C161: Заработная плата | F161: 0701 | G161: 3110271060 | H161: 111 | I161: 211 | J161: 211.00.00 | K161: 5,755,200.00 | L161: 1,367,400.00 | M161: 5,755,200.00 | N161: 1,444,800.00 | O161: 7,279,200.00 | Q161: 5 шт.ед*,27093*13 мес; 11,75шт.ед.*35100,00*13 мес
B162: 723 | C162: Соц.пособия и компенсац. персоналу в ден.форме | F162: 0701 | G162: 3110271060 | H162: 111 | I162: 266 | J162: 266.00.00
B163: 723 | C163: Начисления на выплаты по оплате труда | F163: 0701 | G163: 3110271060 | H163: 119 | I163: 213 | J163: 213.00.00 | K163: 1,738,000.00 | L163: 413,000.00 | M163: 1,738,000.00 | N163: 584,100.00 | O163: 2,198,300.00
B164: 723 | C164: Уплата прочих налогов, сборов | F164: 0701 | G164: 3110271060 | H164: 852 | I164: 292 | J164: 292.00.00
B165: 723 | C165: Штрафы за нарушение законодательства о налогах и сборах,законодательства о страховых взносах | F165: 0701 | G165: 3110271060 | H165: 853 | I165: 292 | J165: 292.00.00 | K165: 50,000.00 | M165: 50,000.00 | O165: 100,000.00
C166: Подпрограмма «Энергосбережение и повышение энергетической эффективности» муниципальной программы «Развитие муниципального хозяйства и комплексное развитие сельских территорий» на 2020-2025 годы
B167: 723 | C167: Увеличение стоимости строительных материалов | F167: 0701 | G167: 3840115510 | H167: 244 | I167: 310 | J167: 310.02.00 | K167: =SUM(K168:K175) -> 715,000.00 | L167: =SUM(L168:L175) -> 13,086,000.00 | M167: =SUM(M168:M175) -> 100,000.00 | N167: =SUM(N168:N175) -> 0.00 | O167: =SUM(O168:O175) -> 0.00
C168: сплит система | F168: 0701 | G168: 3840115510 | H168: 244 | I168: 310 | J168: 310.02.00 | K168: 45,000.00 | Q168: 1 шт*45000,00 (спортивный зал)
C169: сплит система | F169: 0701 | G169: 3840115510 | H169: 244 | I169: 310 | J169: 310.02.00 | K169: 30,000.00 | Q169: 1 шт*30000,00 (медицинский кабинет)
F170: 0701 | G170: 3840115510 | H170: 244 | I170: 310 | J170: 310.02.00 | K170: 640,000.00 | Q170: лишние
C171: энергосберегающие лампы | F171: 0701 | G171: 3840115510 | H171: 244 | I171: 346 | J171: 346.00.00 | L171: 5,000.00 | M171: 5,000.00 | Q171: Износ устаревших люминисцентных ламп
C172: огнеупорные двери | F172: 0701 | G172: 3840115510 | H172: 244 | I172: 346 | J172: 346.00.00 | L172: 81,000.00 | M172: 95,000.00 | Q172: 3шт*27000,00 (пищеблок, прачечная)
C173: капитальный ремонт: замена системы отопления | F173: 0701 | G173: 3840115510 | H173: 243 | I173: 226 | J173: 226.07.00 | L173: 6,000,000.00 | Q173: Федеральный закон "Об энергосбережении и о повышении энергетической эффективности и о внесении изменений в отдельные законодательные акты Российской Федерации" от 23.11.2009 N 261-ФЗ
C174: капитальный ремонт: Замена кровли | F174: 0701 | G174: 3840115510 | H174: 243 | I174: 226 | J174: 226.07.00 | L174: 7,000,000.00 | Q174: Предписание Роспоребнадзора от 11.03.2024№12
C175: Подпрограмма «Доступная среда» муниципальной программы «Развитие муниципального хозяйства и комплексное развитие сельских территорий» на 2020-2025 годы
C176: Подпрограмма «Противодействие экстремизму и профилактика терроризма» муниципальной программы «Безопасность Городовиковского района» на 2015-2021 годы | K176: =K177+K178 -> 30,600.00 | L176: =L177+L178+L179+L180 -> 2,530,000.00 | M176: =M177+M178 -> 30,600.00 | N176: =N177 -> 0.00 | O176: =O177 -> 30,600.00
B177: 723 | C177: Оплата услуг по вневедомственной охране | F177: 0701 | G177: 4220129580 | H177: 244 | I177: 226 | J177: 226.03.00 | K177: 30,600.00 | M177: 30,600.00 | O177: 30,600.00
C178: Установка видеонаблюдения в слепые зоны | F178: 0701 | G178: 4220129580 | H178: 244 | I178: 226 | J178: 226.07.00 | L178: 30,000.00 | Q178: видеокамеры 3 шт.*10000,00
B179: 723 | C179: Увеличение стоимости материалов | F179: 0701 | G179: 4220129580 | H179: 244 | I179: 346 | J179: 346.00.00 | Q179: оборудование совещения игровых участков и запасных выходов
C180: ограждение территории | F180: 0701 | G180: 4220129580 | H180: 244 | I180: 344 | J180: 344.00.00 | L180: 2,500,000.00 | Q180: Закон РФ от 05.03.1992 №2446-I «О безопасности» Постановление Правительства РФ от 02.08.2019 №1006 «Об утверждении требований к антитеррористической защищенности объектов (территорий) Министерства просвещения Российской Федерации и объектов (территорий), относящихся к сфере деятельности Министерства просвещения Российской Федерации, и формы паспорта безопасности этих объектов (территорий)».
C181: Выплата компенсации части родительской платы за присмотр и уход за детьми в образовательных организациях | G181: 3110271130 | K181: =K182+K183 -> 477,000.00 | M181: =M182+M183 -> 477,000.00 | O181: =O182+O183 -> 477,000.00
B182: 723 | C182: Прочие работы и услуги | F182: 1004 | G182: 3110271130 | H182: 244 | I182: 226 | J182: 226.07.00 | K182: 7,000.00 | M182: 7,000.00 | O182: 7,000.00
B183: 723 | C183: Пособия по социальной помощи населению в денежной форме | F183: 1004 | G183: 3110271130 | H183: 321 | I183: 262 | J183: 262.00.00 | K183: 470,000.00 | M183: 470,000.00 | O183: 470,000.00
B184: Итого | K184: =K17+K18+K19+K20+K22+K23+K24+K27+K28+K29+K32+K33+K34+K35+K36+K37+K38+K41+K44+K51+K64+K97+K98+K99+K100+K101+K109+K134+K135+K136+K137+K138+K139+K140+K141+K145+K160+K167+K176+K181 -> 15,717,200.00 | L184: =L17+L22+L23+L27+L31+L32+L33+L34+L41+L44+L100+L101+L109+L145+L160+L167+L176 -> 18,662,080.00 | M184: =M17+M18+M19+M20+M22+M23+M24+M27++M28+M29+M30+M31+M32+M33+M34+M35+M36+M37+M38+M41+M44+M51+M64+M97+M98+M99+M100+M101+M109+M134+M135+M136+M137+M138+M139+M140+M141+M145+M160+M167+M176+M181 -> 15,395,900.00 | N184: =N17+N22+N23+N27+N32+N33+N34+N41+N100+N109+N160+N176+N64 -> 2,525,700.00 | O184: =O17+O18+O19+O20+O22+O23+O24+O27+O28+O32+O33+O34+O35+O36+O37+O38+O41+O44+O51+O64+O97+O98+O99+O100+O101+O109+O134+O135+O136+O137+O138+O139+O140+O141+O145+O160+O167+O176+O181 -> 17,768,200.00
F187: Заведующий
F188: Вед.бухгалтер
